Workbook

Sheet Feed Cost
A2: . . . . . . . . . . . . . . . . . . . . . . . . . . . . . . . . . . . . . . . . . . . . . . . . . . . . . .
A3: FeedPlan - Feed Ingredient Cost Calculator | J3: Printed: | K3: =TODAY() -> 2023-09-27
B5: Price/Unit (as fed) | C5: Weight (as fed) | D5: % Moisture | F5: % TDN (DM Basis) | G5: % CP (DM Basis) | I5: *** Enter changes from feed test results and feed price to items in BLUE only, then press a sort button below. ***
A6: Feed Ingredient
A7: alfalfa/grass hay | B7: 120 | C7: 2000 | D7: 12.6 | F7: 57.6 | G7: 13.1
A8: alfalfa hay | B8: 160 | C8: 2000 | D8: 12.1 | F8: 63 | G8: 19.2
A9: native grass hay | B9: 80 | C9: 2000 | D9: 11.1 | F9: 55.5 | G9: 9.9 | I9: The protein (CP) and total digestible nutrient (TDN) energy that an average beef cow needs:
A10: oat greenfeed | B10: 120 | C10: 2000 | D10: 15 | F10: 59.6 | G10: 9.9
A11: corn silage | B11: 45 | C11: 2000 | D11: 71.2 | F11: 66.4 | G11: 9.3
A12: corn gluten pellets | B12: 425 | C12: 2000 | D12: 10 | F12: 83 | G12: 20 | I12: · Mid pregnancy: 7% CP and 55% TDN
A13: barley straw | B13: 70 | C13: 2000 | D13: 10.9 | F13: 46 | G13: 5 | I13: · Late pregnancy: 9% CP and 60% TDN
A14: wheat straw | B14: 70 | C14: 2000 | D14: 10.9 | F14: 44 | G14: 3.1 | I14: · After calving: 11 to 12% CP and 65% TDN
A15: barley grain | B15: 6 | C15: 48 | D15: 11.5 | F15: 83.1 | G15: 12.5
A16: corn grain | B16: 7.3 | C16: 56 | D16: 11 | F16: 88.2 | G16: 10
A17: feed wheat grain | B17: 8.5 | C17: 60 | D17: 11.8 | F17: 88.9 | G17: 15.6
A18: oat grain | B18: 5 | C18: 34 | D18: 9.8 | F18: 76.2 | G18: 11.3
A19: 12% pellets | B19: 300 | C19: 2205 | D19: 10 | F19: 72 | G19: 12
A20: feed peas | B20: 10 | C20: 60 | D20: 11.8 | F20: 87.2 | G20: 23.9
A21: corn DDG | B21: 350 | C21: 2205 | D21: 10 | F21: 88 | G21: 28
A22: 34% canola meal | B22: 425 | C22: 2205 | D22: 8 | F22: 70 | G22: 34
A23: 47% soybean meal | B23: 625 | C23: 2205 | D23: 10 | F23: 78 | G23: 47
A24: beet pulp | B24: 40 | C24: 2205 | D24: 80 | F24: 72 | G24: 8
A25: 22% lick tub | B25: 190 | C25: 200 | D25: 5 | F25: 80 | G25: 23.1
A26: 25.6% molasses | B26: 475 | C26: 2205 | D26: 50 | F26: 65.8 | G26: 51.3
A27: wheat straw NH3 | B27: 120 | C27: 2000 | D27: 12 | F27: 41.5 | G27: 8
A28: grass hay NH3 | B28: 130 | C28: 2000 | D28: 15 | F28: 62.3 | G28: 18.5
A30: Sorted by Feed Energy (TDN) Cost | E30: Sorted by Crude Protein (CP) Cost | I30: Sorted by Dry Matter (DM) Cost
B31: Price/Unit (as fed) | C31: TDN Cost ($/lb) | F31: Price/Unit (as fed) | G31: CP Cost ($/lb) | J31: Price/Unit (as fed) | K31: DM Cost ($/lb)
A32: Feed Ingredient | E32: Feed Ingredient | I32: Feed Ingredient
A33: ='Sheet 1'!$A$4 -> native grass hay | B33: ='Sheet 1'!$B$4 -> 80 | C33: ='Sheet 1'!$G$4 -> 0.08107094721 | E33: ='Sheet 1'!$A$30 -> grass hay NH3 | F33: ='Sheet 1'!$B$30 -> 130 | G33: ='Sheet 1'!$H$30 -> 0.413354531 | I33: ='Sheet 1'!$A$56 -> barley straw | J33: ='Sheet 1'!$B$56 -> 70 | K33: ='Sheet 1'!$J$56 -> 0.03928170595
A34: ='Sheet 1'!$A$5 -> barley straw | B34: ='Sheet 1'!$B$5 -> 70 | C34: ='Sheet 1'!$G$5 -> 0.08539501293 | E34: ='Sheet 1'!$A$31 -> native grass hay | F34: ='Sheet 1'!$B$31 -> 80 | G34: ='Sheet 1'!$H$31 -> 0.4544886435 | I34: ='Sheet 1'!$A$57 -> wheat straw | J34: ='Sheet 1'!$B$57 -> 70 | K34: ='Sheet 1'!$J$57 -> 0.03928170595
A35: ='Sheet 1'!$A$6 -> wheat straw | B35: ='Sheet 1'!$B$6 -> 70 | C35: ='Sheet 1'!$G$6 -> 0.08927660443 | E35: ='Sheet 1'!$A$32 -> alfalfa hay | F35: ='Sheet 1'!$B$32 -> 160 | G35: ='Sheet 1'!$H$32 -> 0.4740235116 | I35: ='Sheet 1'!$A$58 -> native grass hay | J35: ='Sheet 1'!$B$58 -> 80 | K35: ='Sheet 1'!$J$58 -> 0.0449943757
A36: ='Sheet 1'!$A$7 -> corn silage | B36: ='Sheet 1'!$B$7 -> 45 | C36: ='Sheet 1'!$G$7 -> 0.1176581325 | E36: ='Sheet 1'!$A$33 -> alfalfa/grass hay | F36: ='Sheet 1'!$B$33 -> 120 | G36: ='Sheet 1'!$H$33 -> 0.5240449281 | I36: ='Sheet 1'!$A$59 -> wheat straw NH3 | J36: ='Sheet 1'!$B$59 -> 120 | K36: ='Sheet 1'!$J$59 -> 0.06818181818
A37: ='Sheet 1'!$A$8 -> oat greenfeed | B37: ='Sheet 1'!$B$8 -> 120 | C37: ='Sheet 1'!$G$8 -> 0.1184366364 | E37: ='Sheet 1'!$A$34 -> 34% canola meal | F37: ='Sheet 1'!$B$34 -> 425 | G37: ='Sheet 1'!$H$34 -> 0.6161885044 | I37: ='Sheet 1'!$A$60 -> alfalfa/grass hay | J37: ='Sheet 1'!$B$60 -> 120 | K37: ='Sheet 1'!$J$60 -> 0.06864988558
A38: ='Sheet 1'!$A$9 -> alfalfa/grass hay | B38: ='Sheet 1'!$B$9 -> 120 | C38: ='Sheet 1'!$G$9 -> 0.1191838291 | E38: ='Sheet 1'!$A$35 -> corn DDG | F38: ='Sheet 1'!$B$35 -> 350 | G38: ='Sheet 1'!$H$35 -> 0.6298815823 | I38: ='Sheet 1'!$A$61 -> oat greenfeed | J38: ='Sheet 1'!$B$61 -> 120 | K38: ='Sheet 1'!$J$61 -> 0.07058823529
A39: ='Sheet 1'!$A$10 -> grass hay NH3 | B39: ='Sheet 1'!$B$10 -> 130 | C39: ='Sheet 1'!$G$10 -> 0.1227457275 | E39: ='Sheet 1'!$A$36 -> 47% soybean meal | F39: ='Sheet 1'!$B$36 -> 625 | G39: ='Sheet 1'!$H$36 -> 0.6700867896 | I39: ='Sheet 1'!$A$62 -> grass hay NH3 | J39: ='Sheet 1'!$B$62 -> 130 | K39: ='Sheet 1'!$J$62 -> 0.07647058824
A40: ='Sheet 1'!$A$11 -> beet pulp | B40: ='Sheet 1'!$B$11 -> 40 | C40: ='Sheet 1'!$G$11 -> 0.1259763165 | E40: ='Sheet 1'!$A$37 -> oat greenfeed | F40: ='Sheet 1'!$B$37 -> 120 | G40: ='Sheet 1'!$H$37 -> 0.7130124777 | I40: ='Sheet 1'!$A$63 -> corn silage | J40: ='Sheet 1'!$B$63 -> 45 | K40: ='Sheet 1'!$J$63 -> 0.078125
A41: ='Sheet 1'!$A$12 -> alfalfa hay | B41: ='Sheet 1'!$B$12 -> 160 | C41: ='Sheet 1'!$G$12 -> 0.1444643083 | E41: ='Sheet 1'!$A$38 -> barley straw | F41: ='Sheet 1'!$B$38 -> 70 | G41: ='Sheet 1'!$H$38 -> 0.785634119 | I41: ='Sheet 1'!$A$64 -> beet pulp | J41: ='Sheet 1'!$B$64 -> 40 | K41: ='Sheet 1'!$J$64 -> 0.09070294785
A42: ='Sheet 1'!$A$13 -> wheat straw NH3 | B42: ='Sheet 1'!$B$13 -> 120 | C42: ='Sheet 1'!$G$13 -> 0.1642935378 | E42: ='Sheet 1'!$A$39 -> feed peas | F42: ='Sheet 1'!$B$39 -> 10 | G42: ='Sheet 1'!$H$39 -> 0.7906463376 | I42: ='Sheet 1'!$A$65 -> alfalfa hay | J42: ='Sheet 1'!$B$65 -> 160 | K42: ='Sheet 1'!$J$65 -> 0.09101251422
A43: ='Sheet 1'!$A$14 -> corn grain | B43: ='Sheet 1'!$B$14 -> 7.3 | C43: ='Sheet 1'!$G$14 -> 0.1660642855 | E43: ='Sheet 1'!$A$40 -> 25.6% molasses | F43: ='Sheet 1'!$B$40 -> 475 | G43: ='Sheet 1'!$H$40 -> 0.8398421097 | I43: ='Sheet 1'!$A$66 -> barley grain | J43: ='Sheet 1'!$B$66 -> 6 | K43: ='Sheet 1'!$J$66 -> 0.1412429379
A44: ='Sheet 1'!$A$15 -> barley grain | B44: ='Sheet 1'!$B$15 -> 6 | C44: ='Sheet 1'!$G$15 -> 0.1699674342 | E44: ='Sheet 1'!$A$41 -> corn silage | F44: ='Sheet 1'!$B$41 -> 45 | G44: ='Sheet 1'!$H$41 -> 0.8400537634 | I44: ='Sheet 1'!$A$67 -> corn grain | J44: ='Sheet 1'!$B$67 -> 7.3 | K44: ='Sheet 1'!$J$67 -> 0.1464686998
A45: ='Sheet 1'!$A$16 -> feed wheat grain | B45: ='Sheet 1'!$B$16 -> 8.5 | C45: ='Sheet 1'!$G$16 -> 0.1806746946 | E45: ='Sheet 1'!$A$42 -> wheat straw NH3 | F45: ='Sheet 1'!$B$42 -> 120 | G45: ='Sheet 1'!$H$42 -> 0.8522727273 | I45: ='Sheet 1'!$A$68 -> 12% pellets | J45: ='Sheet 1'!$B$68 -> 300 | K45: ='Sheet 1'!$J$68 -> 0.1511715797
A46: ='Sheet 1'!$A$17 -> corn DDG | B46: ='Sheet 1'!$B$17 -> 350 | C46: ='Sheet 1'!$G$17 -> 0.2004168671 | E46: ='Sheet 1'!$A$43 -> feed wheat grain | F46: ='Sheet 1'!$B$43 -> 8.5 | G46: ='Sheet 1'!$H$43 -> 1.029614125 | I46: ='Sheet 1'!$A$69 -> feed wheat grain | J46: ='Sheet 1'!$B$69 -> 8.5 | K46: ='Sheet 1'!$J$69 -> 0.1606198035
A47: ='Sheet 1'!$A$18 -> 12% pellets | B47: ='Sheet 1'!$B$18 -> 300 | C47: ='Sheet 1'!$G$18 -> 0.2099605274 | E47: ='Sheet 1'!$A$44 -> barley grain | F47: ='Sheet 1'!$B$44 -> 6 | G47: ='Sheet 1'!$H$44 -> 1.129943503 | I47: ='Sheet 1'!$A$70 -> oat grain | J47: ='Sheet 1'!$B$70 -> 5 | K47: ='Sheet 1'!$J$70 -> 0.1630363897
A48: ='Sheet 1'!$A$19 -> oat grain | B48: ='Sheet 1'!$B$19 -> 5 | C48: ='Sheet 1'!$G$19 -> 0.2139585167 | E48: ='Sheet 1'!$A$45 -> beet pulp | F48: ='Sheet 1'!$B$45 -> 40 | G48: ='Sheet 1'!$H$45 -> 1.133786848 | I48: ='Sheet 1'!$A$71 -> corn DDG | J48: ='Sheet 1'!$B$71 -> 350 | K48: ='Sheet 1'!$J$71 -> 0.176366843
A49: ='Sheet 1'!$A$20 -> feed peas | B49: ='Sheet 1'!$B$20 -> 10 | C49: ='Sheet 1'!$G$20 -> 0.2167023792 | E49: ='Sheet 1'!$A$46 -> corn gluten pellets | F49: ='Sheet 1'!$B$46 -> 425 | G49: ='Sheet 1'!$H$46 -> 1.180555556 | I49: ='Sheet 1'!$A$72 -> feed peas | J49: ='Sheet 1'!$B$72 -> 10 | K49: ='Sheet 1'!$J$72 -> 0.1889644747
A50: ='Sheet 1'!$A$21 -> corn gluten pellets | B50: ='Sheet 1'!$B$21 -> 425 | C50: ='Sheet 1'!$G$21 -> 0.2844712182 | E50: ='Sheet 1'!$A$47 -> 12% pellets | F50: ='Sheet 1'!$B$47 -> 300 | G50: ='Sheet 1'!$H$47 -> 1.259763165 | I50: ='Sheet 1'!$A$73 -> 34% canola meal | J50: ='Sheet 1'!$B$73 -> 425 | K50: ='Sheet 1'!$J$73 -> 0.2095040915
A51: ='Sheet 1'!$A$22 -> 34% canola meal | B51: ='Sheet 1'!$B$22 -> 425 | C51: ='Sheet 1'!$G$22 -> 0.2992915593 | E51: ='Sheet 1'!$A$48 -> wheat straw | F51: ='Sheet 1'!$B$48 -> 70 | G51: ='Sheet 1'!$H$48 -> 1.267151805 | I51: ='Sheet 1'!$A$74 -> corn gluten pellets | J51: ='Sheet 1'!$B$74 -> 425 | K51: ='Sheet 1'!$J$74 -> 0.2361111111
A52: ='Sheet 1'!$A$23 -> 47% soybean meal | B52: ='Sheet 1'!$B$23 -> 625 | C52: ='Sheet 1'!$G$23 -> 0.403770245 | E52: ='Sheet 1'!$A$49 -> oat grain | F52: ='Sheet 1'!$B$49 -> 5 | G52: ='Sheet 1'!$H$49 -> 1.442799909 | I52: ='Sheet 1'!$A$75 -> 47% soybean meal | J52: ='Sheet 1'!$B$75 -> 625 | K52: ='Sheet 1'!$J$75 -> 0.3149407911
A53: ='Sheet 1'!$A$24 -> 25.6% molasses | B53: ='Sheet 1'!$B$24 -> 475 | C53: ='Sheet 1'!$G$24 -> 0.6547705202 | E53: ='Sheet 1'!$A$50 -> corn grain | F53: ='Sheet 1'!$B$50 -> 7.3 | G53: ='Sheet 1'!$H$50 -> 1.464686998 | I53: ='Sheet 1'!$A$76 -> 25.6% molasses | J53: ='Sheet 1'!$B$76 -> 475 | K53: ='Sheet 1'!$J$76 -> 0.4308390023
A54: ='Sheet 1'!$A$25 -> 22% lick tub | B54: ='Sheet 1'!$B$25 -> 190 | C54: ='Sheet 1'!$G$25 -> 1.25 | E54: ='Sheet 1'!$A$51 -> 22% lick tub | F54: ='Sheet 1'!$B$51 -> 190 | G54: ='Sheet 1'!$H$51 -> 4.329004329 | I54: ='Sheet 1'!$A$77 -> 22% lick tub | J54: ='Sheet 1'!$B$77 -> 190 | K54: ='Sheet 1'!$J$77 -> 1
A125: Note: This budget is only a guide and is not intended as an in-depth study of livestock feed values. Interpretation and use of this information is the responsibility of the user. If you need help with a budget, contact a Farm Management Specialist.
K127: September, 2023

Sheet Sheet 1
A1: TDN Sort - lowest cost column K, highest cost column L
B2: Price/Unit | C2: Weight | D2: % | E2: % TDN | F2: % CP | G2: TDN Cost | H2: CP Cost | I2: Weight | J2: cents/lb
A3: Commodity | B3: (As Fed) | C3: (As Fed) | D3: Moisture | E3: (DM Basis) | F3: (DM Basis) | G3: $/lb | H3: cents/lb | I3: (Dry Matter) | J3: (Dry Matter)
A4: ='Feed Cost'!A9 -> native grass hay | B4: ='Feed Cost'!B9 -> 80 | C4: ='Feed Cost'!C9 -> 2000 | D4: ='Feed Cost'!D9 -> 11.1 | E4: ='Feed Cost'!F9 -> 55.5 | F4: ='Feed Cost'!G9 -> 9.9 | G4: =(B4)/(I4*(E4/100)) -> 0.08107094721 | H4: =(B4*100)/(I4*(F4/100)) -> 45.44886435 | I4: =C4*(100-D4)/100 -> 1778 | J4: =B4*100/I4 -> 4.49943757 | K4: =RANK(G4,$G$4:$G$25,1) -> 1 | L4: =RANK(G4,$G$4:$G$25,0) -> 22
A5: ='Feed Cost'!A13 -> barley straw | B5: ='Feed Cost'!B13 -> 70 | C5: ='Feed Cost'!C13 -> 2000 | D5: ='Feed Cost'!D13 -> 10.9 | E5: ='Feed Cost'!F13 -> 46 | F5: ='Feed Cost'!G13 -> 5 | G5: 0.08539501293 | H5: 78.5634119 | I5: 1782 | J5: 3.928170595 | K5: 2 | L5: 21
A6: ='Feed Cost'!A14 -> wheat straw | B6: ='Feed Cost'!B14 -> 70 | C6: ='Feed Cost'!C14 -> 2000 | D6: ='Feed Cost'!D14 -> 10.9 | E6: ='Feed Cost'!F14 -> 44 | F6: ='Feed Cost'!G14 -> 3.1 | G6: 0.08927660443 | H6: 126.7151805 | I6: 1782 | J6: 3.928170595 | K6: 3 | L6: 20
A7: ='Feed Cost'!A11 -> corn silage | B7: ='Feed Cost'!B11 -> 45 | C7: ='Feed Cost'!C11 -> 2000 | D7: ='Feed Cost'!D11 -> 71.2 | E7: ='Feed Cost'!F11 -> 66.4 | F7: ='Feed Cost'!G11 -> 9.3 | G7: 0.1176581325 | H7: 84.00537634 | I7: 576 | J7: 7.8125 | K7: 4 | L7: 19
A8: ='Feed Cost'!A10 -> oat greenfeed | B8: ='Feed Cost'!B10 -> 120 | C8: ='Feed Cost'!C10 -> 2000 | D8: ='Feed Cost'!D10 -> 15 | E8: ='Feed Cost'!F10 -> 59.6 | F8: ='Feed Cost'!G10 -> 9.9 | G8: 0.1184366364 | H8: 71.30124777 | I8: 1700 | J8: 7.058823529 | K8: 5 | L8: 18
A9: ='Feed Cost'!A7 -> alfalfa/grass hay | B9: ='Feed Cost'!B7 -> 120 | C9: ='Feed Cost'!C7 -> 2000 | D9: ='Feed Cost'!D7 -> 12.6 | E9: ='Feed Cost'!F7 -> 57.6 | F9: ='Feed Cost'!G7 -> 13.1 | G9: 0.1191838291 | H9: 52.40449281 | I9: 1748 | J9: 6.864988558 | K9: 6 | L9: 17
A10: =IF('Feed Cost'!A28="(enter new feed)","",'Feed Cost'!A28) -> grass hay NH3 | B10: =IF('Feed Cost'!B28=0,"",'Feed Cost'!B28) -> 130 | C10: ='Feed Cost'!C28 -> 2000 | D10: ='Feed Cost'!D28 -> 15 | E10: ='Feed Cost'!F28 -> 62.3 | F10: ='Feed Cost'!G28 -> 18.5 | G10: =IF(B10="","",(B10)/(I10*(E10/100))) -> 0.1227457275 | H10: 41.3354531 | I10: 1700 | J10: 7.647058824 | K10: 7 | L10: 16
A11: ='Feed Cost'!A24 -> beet pulp | B11: ='Feed Cost'!B24 -> 40 | C11: ='Feed Cost'!C24 -> 2205 | D11: ='Feed Cost'!D24 -> 80 | E11: ='Feed Cost'!F24 -> 72 | F11: ='Feed Cost'!G24 -> 8 | G11: =(B11)/(I11*(E11/100)) -> 0.1259763165 | H11: 113.3786848 | I11: 441 | J11: 9.070294785 | K11: 8 | L11: 15
A12: ='Feed Cost'!A8 -> alfalfa hay | B12: ='Feed Cost'!B8 -> 160 | C12: ='Feed Cost'!C8 -> 2000 | D12: ='Feed Cost'!D8 -> 12.1 | E12: ='Feed Cost'!F8 -> 63 | F12: ='Feed Cost'!G8 -> 19.2 | G12: =(B12)/(I12*(E12/100)) -> 0.1444643083 | H12: 47.40235116 | I12: 1758 | J12: 9.101251422 | K12: 9 | L12: 14
A13: =IF('Feed Cost'!A27="(enter new feed)","",'Feed Cost'!A27) -> wheat straw NH3 | B13: =IF('Feed Cost'!B27=0,"",'Feed Cost'!B27) -> 120 | C13: ='Feed Cost'!C27 -> 2000 | D13: ='Feed Cost'!D27 -> 12 | E13: ='Feed Cost'!F27 -> 41.5 | F13: ='Feed Cost'!G27 -> 8 | G13: =IF(B13="","",(B13)/(I13*(E13/100))) -> 0.1642935378 | H13: 85.22727273 | I13: 1760 | J13: 6.818181818 | K13: 10 | L13: 13
A14: ='Feed Cost'!A16 -> corn grain | B14: ='Feed Cost'!B16 -> 7.3 | C14: ='Feed Cost'!C16 -> 56 | D14: ='Feed Cost'!D16 -> 11 | E14: ='Feed Cost'!F16 -> 88.2 | F14: ='Feed Cost'!G16 -> 10 | G14: =(B14)/(I14*(E14/100)) -> 0.1660642855 | H14: 146.4686998 | I14: 49.84 | J14: 14.64686998 | K14: 11 | L14: 12
A15: ='Feed Cost'!A15 -> barley grain | B15: ='Feed Cost'!B15 -> 6 | C15: ='Feed Cost'!C15 -> 48 | D15: ='Feed Cost'!D15 -> 11.5 | E15: ='Feed Cost'!F15 -> 83.1 | F15: ='Feed Cost'!G15 -> 12.5 | G15: 0.1699674342 | H15: 112.9943503 | I15: 42.48 | J15: 14.12429379 | K15: 12 | L15: 11
A16: ='Feed Cost'!A17 -> feed wheat grain | B16: ='Feed Cost'!B17 -> 8.5 | C16: ='Feed Cost'!C17 -> 60 | D16: ='Feed Cost'!D17 -> 11.8 | E16: ='Feed Cost'!F17 -> 88.9 | F16: ='Feed Cost'!G17 -> 15.6 | G16: 0.1806746946 | H16: 102.9614125 | I16: 52.92 | J16: 16.06198035 | K16: 13 | L16: 10
A17: ='Feed Cost'!A21 -> corn DDG | B17: ='Feed Cost'!B21 -> 350 | C17: ='Feed Cost'!C21 -> 2205 | D17: ='Feed Cost'!D21 -> 10 | E17: ='Feed Cost'!F21 -> 88 | F17: ='Feed Cost'!G21 -> 28 | G17: 0.2004168671 | H17: 62.98815823 | I17: 1984.5 | J17: 17.6366843 | K17: 14 | L17: 9
A18: ='Feed Cost'!A19 -> 12% pellets | B18: ='Feed Cost'!B19 -> 300 | C18: ='Feed Cost'!C19 -> 2205 | D18: ='Feed Cost'!D19 -> 10 | E18: ='Feed Cost'!F19 -> 72 | F18: ='Feed Cost'!G19 -> 12 | G18: 0.2099605274 | H18: 125.9763165 | I18: 1984.5 | J18: 15.11715797 | K18: 15 | L18: 8
A19: ='Feed Cost'!A18 -> oat grain | B19: ='Feed Cost'!B18 -> 5 | C19: ='Feed Cost'!C18 -> 34 | D19: ='Feed Cost'!D18 -> 9.8 | E19: ='Feed Cost'!F18 -> 76.2 | F19: ='Feed Cost'!G18 -> 11.3 | G19: 0.2139585167 | H19: 144.2799909 | I19: 30.668 | J19: 16.30363897 | K19: 16 | L19: 7
A20: ='Feed Cost'!A20 -> feed peas | B20: ='Feed Cost'!B20 -> 10 | C20: ='Feed Cost'!C20 -> 60 | D20: ='Feed Cost'!D20 -> 11.8 | E20: ='Feed Cost'!F20 -> 87.2 | F20: ='Feed Cost'!G20 -> 23.9 | G20: 0.2167023792 | H20: 79.06463376 | I20: 52.92 | J20: 18.89644747 | K20: 17 | L20: 6
A21: ='Feed Cost'!A12 -> corn gluten pellets | B21: ='Feed Cost'!B12 -> 425 | C21: ='Feed Cost'!C12 -> 2000 | D21: ='Feed Cost'!D12 -> 10 | E21: ='Feed Cost'!F12 -> 83 | F21: ='Feed Cost'!G12 -> 20 | G21: 0.2844712182 | H21: 118.0555556 | I21: 1800 | J21: 23.61111111 | K21: 18 | L21: 5
A22: ='Feed Cost'!A22 -> 34% canola meal | B22: ='Feed Cost'!B22 -> 425 | C22: ='Feed Cost'!C22 -> 2205 | D22: ='Feed Cost'!D22 -> 8 | E22: ='Feed Cost'!F22 -> 70 | F22: ='Feed Cost'!G22 -> 34 | G22: 0.2992915593 | H22: 61.61885044 | I22: 2028.6 | J22: 20.95040915 | K22: 19 | L22: 4
A23: ='Feed Cost'!A23 -> 47% soybean meal | B23: ='Feed Cost'!B23 -> 625 | C23: ='Feed Cost'!C23 -> 2205 | D23: ='Feed Cost'!D23 -> 10 | E23: ='Feed Cost'!F23 -> 78 | F23: ='Feed Cost'!G23 -> 47 | G23: 0.403770245 | H23: 67.00867896 | I23: 1984.5 | J23: 31.49407911 | K23: 20 | L23: 3
A24: =IF('Feed Cost'!A26="(enter new feed)","",'Feed Cost'!A26) -> 25.6% molasses | B24: =IF('Feed Cost'!B26=0,"",'Feed Cost'!B26) -> 475 | C24: ='Feed Cost'!C26 -> 2205 | D24: ='Feed Cost'!D26 -> 50 | E24: ='Feed Cost'!F26 -> 65.8 | F24: ='Feed Cost'!G26 -> 51.3 | G24: =IF(B24="","",(B24)/(I24*(E24/100))) -> 0.6547705202 | H24: 83.98421097 | I24: 1102.5 | J24: 43.08390023 | K24: 21 | L24: 2
A25: =IF('Feed Cost'!A25="(enter new feed)","",'Feed Cost'!A25) -> 22% lick tub | B25: =IF('Feed Cost'!B25=0,"",'Feed Cost'!B25) -> 190 | C25: ='Feed Cost'!C25 -> 200 | D25: ='Feed Cost'!D25 -> 5 | E25: ='Feed Cost'!F25 -> 80 | F25: ='Feed Cost'!G25 -> 23.1 | G25: =IF(B25="","",(B25)/(I25*(E25/100))) -> 1.25 | H25: 432.9004329 | I25: 190 | J25: 100 | K25: 22 | L25: 1
A27: Sorted based on lowest cost feed protein (CP)
B28: Price/Unit | C28: Weight | D28: % | E28: % TDN | F28: % CP | G28: TDN Cost | H28: CP Cost | I28: Weight | J28: cents/lb
A29: Commodity | B29: (As Fed) | C29: (As Fed) | D29: Moisture | E29: (DM Basis) | F29: (DM Basis) | G29: cents/lb | H29: $/lb | I29: (Dry Matter) | J29: (Dry Matter)
A30: =IF('Feed Cost'!A28="(enter new feed)","",'Feed Cost'!A28) -> grass hay NH3 | B30: =IF('Feed Cost'!B28=0,"",'Feed Cost'!B28) -> 130 | C30: ='Feed Cost'!C28 -> 2000 | D30: ='Feed Cost'!D28 -> 15 | E30: ='Feed Cost'!F28 -> 62.3 | F30: ='Feed Cost'!G28 -> 18.5 | G30: =(B30*100)/(I30*(E30/100)) -> 12.27457275 | H30: =IF(B30="","",(B30)/(I30*(F30/100))) -> 0.413354531 | I30: =C30*(100-D30)/100 -> 1700 | J30: =B30*100/I30 -> 7.647058824 | K30: =RANK(H30,$H$30:$H$51,1) -> 1 | L30: =RANK(H30,$H$30:$H$51,0) -> 22
A31: ='Feed Cost'!A9 -> native grass hay | B31: ='Feed Cost'!B9 -> 80 | C31: ='Feed Cost'!C9 -> 2000 | D31: ='Feed Cost'!D9 -> 11.1 | E31: ='Feed Cost'!F9 -> 55.5 | F31: ='Feed Cost'!G9 -> 9.9 | G31: 8.107094721 | H31: =(B31)/(I31*(F31/100)) -> 0.4544886435 | I31: 1778 | J31: 4.49943757 | K31: 2 | L31: 21
A32: ='Feed Cost'!A8 -> alfalfa hay | B32: ='Feed Cost'!B8 -> 160 | C32: ='Feed Cost'!C8 -> 2000 | D32: ='Feed Cost'!D8 -> 12.1 | E32: ='Feed Cost'!F8 -> 63 | F32: ='Feed Cost'!G8 -> 19.2 | G32: 14.44643083 | H32: 0.4740235116 | I32: 1758 | J32: 9.101251422 | K32: 3 | L32: 20
A33: ='Feed Cost'!A7 -> alfalfa/grass hay | B33: ='Feed Cost'!B7 -> 120 | C33: ='Feed Cost'!C7 -> 2000 | D33: ='Feed Cost'!D7 -> 12.6 | E33: ='Feed Cost'!F7 -> 57.6 | F33: ='Feed Cost'!G7 -> 13.1 | G33: 11.91838291 | H33: 0.5240449281 | I33: 1748 | J33: 6.864988558 | K33: 4 | L33: 19
A34: ='Feed Cost'!A22 -> 34% canola meal | B34: ='Feed Cost'!B22 -> 425 | C34: ='Feed Cost'!C22 -> 2205 | D34: ='Feed Cost'!D22 -> 8 | E34: ='Feed Cost'!F22 -> 70 | F34: ='Feed Cost'!G22 -> 34 | G34: 29.92915593 | H34: 0.6161885044 | I34: 2028.6 | J34: 20.95040915 | K34: 5 | L34: 18
A35: ='Feed Cost'!A21 -> corn DDG | B35: ='Feed Cost'!B21 -> 350 | C35: ='Feed Cost'!C21 -> 2205 | D35: ='Feed Cost'!D21 -> 10 | E35: ='Feed Cost'!F21 -> 88 | F35: ='Feed Cost'!G21 -> 28 | G35: 20.04168671 | H35: 0.6298815823 | I35: 1984.5 | J35: 17.6366843 | K35: 6 | L35: 17
A36: ='Feed Cost'!A23 -> 47% soybean meal | B36: ='Feed Cost'!B23 -> 625 | C36: ='Feed Cost'!C23 -> 2205 | D36: ='Feed Cost'!D23 -> 10 | E36: ='Feed Cost'!F23 -> 78 | F36: ='Feed Cost'!G23 -> 47 | G36: 40.3770245 | H36: 0.6700867896 | I36: 1984.5 | J36: 31.49407911 | K36: 7 | L36: 16
A37: ='Feed Cost'!A10 -> oat greenfeed | B37: ='Feed Cost'!B10 -> 120 | C37: ='Feed Cost'!C10 -> 2000 | D37: ='Feed Cost'!D10 -> 15 | E37: ='Feed Cost'!F10 -> 59.6 | F37: ='Feed Cost'!G10 -> 9.9 | G37: 11.84366364 | H37: 0.7130124777 | I37: 1700 | J37: 7.058823529 | K37: 8 | L37: 15
A38: ='Feed Cost'!A13 -> barley straw | B38: ='Feed Cost'!B13 -> 70 | C38: ='Feed Cost'!C13 -> 2000 | D38: ='Feed Cost'!D13 -> 10.9 | E38: ='Feed Cost'!F13 -> 46 | F38: ='Feed Cost'!G13 -> 5 | G38: 8.539501293 | H38: 0.785634119 | I38: 1782 | J38: 3.928170595 | K38: 9 | L38: 14
A39: ='Feed Cost'!A20 -> feed peas | B39: ='Feed Cost'!B20 -> 10 | C39: ='Feed Cost'!C20 -> 60 | D39: ='Feed Cost'!D20 -> 11.8 | E39: ='Feed Cost'!F20 -> 87.2 | F39: ='Feed Cost'!G20 -> 23.9 | G39: 21.67023792 | H39: 0.7906463376 | I39: 52.92 | J39: 18.89644747 | K39: 10 | L39: 13
A40: =IF('Feed Cost'!A26="(enter new feed)","",'Feed Cost'!A26) -> 25.6% molasses | B40: =IF('Feed Cost'!B26=0,"",'Feed Cost'!B26) -> 475 | C40: ='Feed Cost'!C26 -> 2205 | D40: ='Feed Cost'!D26 -> 50 | E40: ='Feed Cost'!F26 -> 65.8 | F40: ='Feed Cost'!G26 -> 51.3 | G40: 65.47705202 | H40: =IF(B40="","",(B40)/(I40*(F40/100))) -> 0.8398421097 | I40: 1102.5 | J40: 43.08390023 | K40: 11 | L40: 12
A41: ='Feed Cost'!A11 -> corn silage | B41: ='Feed Cost'!B11 -> 45 | C41: ='Feed Cost'!C11 -> 2000 | D41: ='Feed Cost'!D11 -> 71.2 | E41: ='Feed Cost'!F11 -> 66.4 | F41: ='Feed Cost'!G11 -> 9.3 | G41: 11.76581325 | H41: =(B41)/(I41*(F41/100)) -> 0.8400537634 | I41: 576 | J41: 7.8125 | K41: 12 | L41: 11
A42: =IF('Feed Cost'!A27="(enter new feed)","",'Feed Cost'!A27) -> wheat straw NH3 | B42: =IF('Feed Cost'!B27=0,"",'Feed Cost'!B27) -> 120 | C42: ='Feed Cost'!C27 -> 2000 | D42: ='Feed Cost'!D27 -> 12 | E42: ='Feed Cost'!F27 -> 41.5 | F42: ='Feed Cost'!G27 -> 8 | G42: 16.42935378 | H42: =IF(B42="","",(B42)/(I42*(F42/100))) -> 0.8522727273 | I42: 1760 | J42: 6.818181818 | K42: 13 | L42: 10
A43: ='Feed Cost'!A17 -> feed wheat grain | B43: ='Feed Cost'!B17 -> 8.5 | C43: ='Feed Cost'!C17 -> 60 | D43: ='Feed Cost'!D17 -> 11.8 | E43: ='Feed Cost'!F17 -> 88.9 | F43: ='Feed Cost'!G17 -> 15.6 | G43: 18.06746946 | H43: =(B43)/(I43*(F43/100)) -> 1.029614125 | I43: 52.92 | J43: 16.06198035 | K43: 14 | L43: 9
A44: ='Feed Cost'!A15 -> barley grain | B44: ='Feed Cost'!B15 -> 6 | C44: ='Feed Cost'!C15 -> 48 | D44: ='Feed Cost'!D15 -> 11.5 | E44: ='Feed Cost'!F15 -> 83.1 | F44: ='Feed Cost'!G15 -> 12.5 | G44: 16.99674342 | H44: 1.129943503 | I44: 42.48 | J44: 14.12429379 | K44: 15 | L44: 8
A45: ='Feed Cost'!A24 -> beet pulp | B45: ='Feed Cost'!B24 -> 40 | C45: ='Feed Cost'!C24 -> 2205 | D45: ='Feed Cost'!D24 -> 80 | E45: ='Feed Cost'!F24 -> 72 | F45: ='Feed Cost'!G24 -> 8 | G45: 12.59763165 | H45: 1.133786848 | I45: 441 | J45: 9.070294785 | K45: 16 | L45: 7
A46: ='Feed Cost'!A12 -> corn gluten pellets | B46: ='Feed Cost'!B12 -> 425 | C46: ='Feed Cost'!C12 -> 2000 | D46: ='Feed Cost'!D12 -> 10 | E46: ='Feed Cost'!F12 -> 83 | F46: ='Feed Cost'!G12 -> 20 | G46: 28.44712182 | H46: 1.180555556 | I46: 1800 | J46: 23.61111111 | K46: 17 | L46: 6
A47: ='Feed Cost'!A19 -> 12% pellets | B47: ='Feed Cost'!B19 -> 300 | C47: ='Feed Cost'!C19 -> 2205 | D47: ='Feed Cost'!D19 -> 10 | E47: ='Feed Cost'!F19 -> 72 | F47: ='Feed Cost'!G19 -> 12 | G47: 20.99605274 | H47: 1.259763165 | I47: 1984.5 | J47: 15.11715797 | K47: 18 | L47: 5
A48: ='Feed Cost'!A14 -> wheat straw | B48: ='Feed Cost'!B14 -> 70 | C48: ='Feed Cost'!C14 -> 2000 | D48: ='Feed Cost'!D14 -> 10.9 | E48: ='Feed Cost'!F14 -> 44 | F48: ='Feed Cost'!G14 -> 3.1 | G48: 8.927660443 | H48: 1.267151805 | I48: 1782 | J48: 3.928170595 | K48: 19 | L48: 4
A49: ='Feed Cost'!A18 -> oat grain | B49: ='Feed Cost'!B18 -> 5 | C49: ='Feed Cost'!C18 -> 34 | D49: ='Feed Cost'!D18 -> 9.8 | E49: ='Feed Cost'!F18 -> 76.2 | F49: ='Feed Cost'!G18 -> 11.3 | G49: 21.39585167 | H49: 1.442799909 | I49: 30.668 | J49: 16.30363897 | K49: 20 | L49: 3
A50: ='Feed Cost'!A16 -> corn grain | B50: ='Feed Cost'!B16 -> 7.3 | C50: ='Feed Cost'!C16 -> 56 | D50: ='Feed Cost'!D16 -> 11 | E50: ='Feed Cost'!F16 -> 88.2 | F50: ='Feed Cost'!G16 -> 10 | G50: 16.60642855 | H50: 1.464686998 | I50: 49.84 | J50: 14.64686998 | K50: 21 | L50: 2
A51: =IF('Feed Cost'!A25="(enter new feed)","",'Feed Cost'!A25) -> 22% lick tub | B51: =IF('Feed Cost'!B25=0,"",'Feed Cost'!B25) -> 190 | C51: ='Feed Cost'!C25 -> 200 | D51: ='Feed Cost'!D25 -> 5 | E51: ='Feed Cost'!F25 -> 80 | F51: ='Feed Cost'!G25 -> 23.1 | G51: 125 | H51: =IF(B51="","",(B51)/(I51*(F51/100))) -> 4.329004329 | I51: 190 | J51: 100 | K51: 22 | L51: 1
A53: Sorted based on lowest cost dry matter (DM)
B54: Price/Unit | C54: Weight | D54: % | E54: % TDN | F54: % CP | G54: TDN Cost | H54: CP Cost | I54: Weight | J54: $/lb
A55: Commodity | B55: (As Fed) | C55: (As Fed) | D55: Moisture | E55: (DM Basis) | F55: (DM Basis) | G55: cents/lb | H55: cents/lb | I55: (Dry Matter) | J55: (Dry Matter)
A56: ='Feed Cost'!A13 -> barley straw | B56: ='Feed Cost'!B13 -> 70 | C56: ='Feed Cost'!C13 -> 2000 | D56: ='Feed Cost'!D13 -> 10.9 | E56: ='Feed Cost'!F13 -> 46 | F56: ='Feed Cost'!G13 -> 5 | G56: =(B56*100)/(I56*(E56/100)) -> 8.539501293 | H56: =(B56*100)/(I56*(F56/100)) -> 78.5634119 | I56: =C56*(100-D56)/100 -> 1782 | J56: =B56/I56 -> 0.03928170595 | K56: =RANK(J56,$J$56:$J$77,1) -> 1 | L56: =RANK(J56,$J$56:$J$77,0) -> 21
A57: ='Feed Cost'!A14 -> wheat straw | B57: ='Feed Cost'!B14 -> 70 | C57: ='Feed Cost'!C14 -> 2000 | D57: ='Feed Cost'!D14 -> 10.9 | E57: ='Feed Cost'!F14 -> 44 | F57: ='Feed Cost'!G14 -> 3.1 | G57: 8.927660443 | H57: 126.7151805 | I57: 1782 | J57: =B57/I57 -> 0.03928170595 | K57: 1 | L57: 21
A58: ='Feed Cost'!A9 -> native grass hay | B58: ='Feed Cost'!B9 -> 80 | C58: ='Feed Cost'!C9 -> 2000 | D58: ='Feed Cost'!D9 -> 11.1 | E58: ='Feed Cost'!F9 -> 55.5 | F58: ='Feed Cost'!G9 -> 9.9 | G58: 8.107094721 | H58: 45.44886435 | I58: 1778 | J58: =B58/I58 -> 0.0449943757 | K58: 3 | L58: 20
A59: =IF('Feed Cost'!A27="(enter new feed)","",'Feed Cost'!A27) -> wheat straw NH3 | B59: =IF('Feed Cost'!B27=0,"",'Feed Cost'!B27) -> 120 | C59: ='Feed Cost'!C27 -> 2000 | D59: ='Feed Cost'!D27 -> 12 | E59: ='Feed Cost'!F27 -> 41.5 | F59: ='Feed Cost'!G27 -> 8 | G59: 16.42935378 | H59: 85.22727273 | I59: 1760 | J59: =IF(B59="","",B59/I59) -> 0.06818181818 | K59: 4 | L59: 19
A60: ='Feed Cost'!A7 -> alfalfa/grass hay | B60: ='Feed Cost'!B7 -> 120 | C60: ='Feed Cost'!C7 -> 2000 | D60: ='Feed Cost'!D7 -> 12.6 | E60: ='Feed Cost'!F7 -> 57.6 | F60: ='Feed Cost'!G7 -> 13.1 | G60: 11.91838291 | H60: 52.40449281 | I60: 1748 | J60: =B60/I60 -> 0.06864988558 | K60: 5 | L60: 18
A61: ='Feed Cost'!A10 -> oat greenfeed | B61: ='Feed Cost'!B10 -> 120 | C61: ='Feed Cost'!C10 -> 2000 | D61: ='Feed Cost'!D10 -> 15 | E61: ='Feed Cost'!F10 -> 59.6 | F61: ='Feed Cost'!G10 -> 9.9 | G61: 11.84366364 | H61: 71.30124777 | I61: 1700 | J61: =B61/I61 -> 0.07058823529 | K61: 6 | L61: 17
A62: =IF('Feed Cost'!A28="(enter new feed)","",'Feed Cost'!A28) -> grass hay NH3 | B62: =IF('Feed Cost'!B28=0,"",'Feed Cost'!B28) -> 130 | C62: ='Feed Cost'!C28 -> 2000 | D62: ='Feed Cost'!D28 -> 15 | E62: ='Feed Cost'!F28 -> 62.3 | F62: ='Feed Cost'!G28 -> 18.5 | G62: 12.27457275 | H62: 41.3354531 | I62: 1700 | J62: =IF(B62="","",B62/I62) -> 0.07647058824 | K62: 7 | L62: 16
A63: ='Feed Cost'!A11 -> corn silage | B63: ='Feed Cost'!B11 -> 45 | C63: ='Feed Cost'!C11 -> 2000 | D63: ='Feed Cost'!D11 -> 71.2 | E63: ='Feed Cost'!F11 -> 66.4 | F63: ='Feed Cost'!G11 -> 9.3 | G63: 11.76581325 | H63: 84.00537634 | I63: 576 | J63: =B63/I63 -> 0.078125 | K63: 8 | L63: 15
A64: ='Feed Cost'!A24 -> beet pulp | B64: ='Feed Cost'!B24 -> 40 | C64: ='Feed Cost'!C24 -> 2205 | D64: ='Feed Cost'!D24 -> 80 | E64: ='Feed Cost'!F24 -> 72 | F64: ='Feed Cost'!G24 -> 8 | G64: 12.59763165 | H64: 113.3786848 | I64: 441 | J64: 0.09070294785 | K64: 9 | L64: 14
A65: ='Feed Cost'!A8 -> alfalfa hay | B65: ='Feed Cost'!B8 -> 160 | C65: ='Feed Cost'!C8 -> 2000 | D65: ='Feed Cost'!D8 -> 12.1 | E65: ='Feed Cost'!F8 -> 63 | F65: ='Feed Cost'!G8 -> 19.2 | G65: 14.44643083 | H65: 47.40235116 | I65: 1758 | J65: 0.09101251422 | K65: 10 | L65: 13
A66: ='Feed Cost'!A15 -> barley grain | B66: ='Feed Cost'!B15 -> 6 | C66: ='Feed Cost'!C15 -> 48 | D66: ='Feed Cost'!D15 -> 11.5 | E66: ='Feed Cost'!F15 -> 83.1 | F66: ='Feed Cost'!G15 -> 12.5 | G66: 16.99674342 | H66: 112.9943503 | I66: 42.48 | J66: 0.1412429379 | K66: 11 | L66: 12
A67: ='Feed Cost'!A16 -> corn grain | B67: ='Feed Cost'!B16 -> 7.3 | C67: ='Feed Cost'!C16 -> 56 | D67: ='Feed Cost'!D16 -> 11 | E67: ='Feed Cost'!F16 -> 88.2 | F67: ='Feed Cost'!G16 -> 10 | G67: 16.60642855 | H67: 146.4686998 | I67: 49.84 | J67: 0.1464686998 | K67: 12 | L67: 11
A68: ='Feed Cost'!A19 -> 12% pellets | B68: ='Feed Cost'!B19 -> 300 | C68: ='Feed Cost'!C19 -> 2205 | D68: ='Feed Cost'!D19 -> 10 | E68: ='Feed Cost'!F19 -> 72 | F68: ='Feed Cost'!G19 -> 12 | G68: 20.99605274 | H68: 125.9763165 | I68: 1984.5 | J68: 0.1511715797 | K68: 13 | L68: 10
A69: ='Feed Cost'!A17 -> feed wheat grain | B69: ='Feed Cost'!B17 -> 8.5 | C69: ='Feed Cost'!C17 -> 60 | D69: ='Feed Cost'!D17 -> 11.8 | E69: ='Feed Cost'!F17 -> 88.9 | F69: ='Feed Cost'!G17 -> 15.6 | G69: 18.06746946 | H69: 102.9614125 | I69: 52.92 | J69: 0.1606198035 | K69: 14 | L69: 9
A70: ='Feed Cost'!A18 -> oat grain | B70: ='Feed Cost'!B18 -> 5 | C70: ='Feed Cost'!C18 -> 34 | D70: ='Feed Cost'!D18 -> 9.8 | E70: ='Feed Cost'!F18 -> 76.2 | F70: ='Feed Cost'!G18 -> 11.3 | G70: 21.39585167 | H70: 144.2799909 | I70: 30.668 | J70: 0.1630363897 | K70: 15 | L70: 8
A71: ='Feed Cost'!A21 -> corn DDG | B71: ='Feed Cost'!B21 -> 350 | C71: ='Feed Cost'!C21 -> 2205 | D71: ='Feed Cost'!D21 -> 10 | E71: ='Feed Cost'!F21 -> 88 | F71: ='Feed Cost'!G21 -> 28 | G71: 20.04168671 | H71: 62.98815823 | I71: 1984.5 | J71: 0.176366843 | K71: 16 | L71: 7
A72: ='Feed Cost'!A20 -> feed peas | B72: ='Feed Cost'!B20 -> 10 | C72: ='Feed Cost'!C20 -> 60 | D72: ='Feed Cost'!D20 -> 11.8 | E72: ='Feed Cost'!F20 -> 87.2 | F72: ='Feed Cost'!G20 -> 23.9 | G72: 21.67023792 | H72: 79.06463376 | I72: 52.92 | J72: 0.1889644747 | K72: 17 | L72: 6
A73: ='Feed Cost'!A22 -> 34% canola meal | B73: ='Feed Cost'!B22 -> 425 | C73: ='Feed Cost'!C22 -> 2205 | D73: ='Feed Cost'!D22 -> 8 | E73: ='Feed Cost'!F22 -> 70 | F73: ='Feed Cost'!G22 -> 34 | G73: 29.92915593 | H73: 61.61885044 | I73: 2028.6 | J73: 0.2095040915 | K73: 18 | L73: 5
A74: ='Feed Cost'!A12 -> corn gluten pellets | B74: ='Feed Cost'!B12 -> 425 | C74: ='Feed Cost'!C12 -> 2000 | D74: ='Feed Cost'!D12 -> 10 | E74: ='Feed Cost'!F12 -> 83 | F74: ='Feed Cost'!G12 -> 20 | G74: 28.44712182 | H74: 118.0555556 | I74: 1800 | J74: 0.2361111111 | K74: 19 | L74: 4
A75: ='Feed Cost'!A23 -> 47% soybean meal | B75: ='Feed Cost'!B23 -> 625 | C75: ='Feed Cost'!C23 -> 2205 | D75: ='Feed Cost'!D23 -> 10 | E75: ='Feed Cost'!F23 -> 78 | F75: ='Feed Cost'!G23 -> 47 | G75: 40.3770245 | H75: 67.00867896 | I75: 1984.5 | J75: 0.3149407911 | K75: 20 | L75: 3
A76: =IF('Feed Cost'!A26="(enter new feed)","",'Feed Cost'!A26) -> 25.6% molasses | B76: =IF('Feed Cost'!B26=0,"",'Feed Cost'!B26) -> 475 | C76: ='Feed Cost'!C26 -> 2205 | D76: ='Feed Cost'!D26 -> 50 | E76: ='Feed Cost'!F26 -> 65.8 | F76: ='Feed Cost'!G26 -> 51.3 | G76: 65.47705202 | H76: 83.98421097 | I76: 1102.5 | J76: =IF(B76="","",B76/I76) -> 0.4308390023 | K76: 21 | L76: 2
A77: =IF('Feed Cost'!A25="(enter new feed)","",'Feed Cost'!A25) -> 22% lick tub | B77: =IF('Feed Cost'!B25=0,"",'Feed Cost'!B25) -> 190 | C77: ='Feed Cost'!C25 -> 200 | D77: ='Feed Cost'!D25 -> 5 | E77: ='Feed Cost'!F25 -> 80 | F77: ='Feed Cost'!G25 -> 23.1 | G77: 125 | H77: 432.9004329 | I77: 190 | J77: =IF(B77="","",B77/I77) -> 1 | K77: 22 | L77: 1
